[Event "*** SCC Grand Prix: Titled Tuesday Blitz"]
[Site "Chess.com"]
[Date "2020.07.07"]
[Round "7"]
[White "MoreChessJulia"]
[Black "Khazieva_Elza"]
[Result "1/2-1/2"]
[WhiteElo "1848"]
[BlackElo "2275"]
[TimeControl "180+1"]
[EndTime "11:19:37 PDT"]
[Termination "Game drawn - insufficient material"]

1. d4 {[%clk 0:02:59.8]} 1... Nf6 {[%clk 0:03:00.1]} 2. c4 {[%clk 0:02:59.3]}
2... d6 {[%clk 0:03:00.5]} 3. f3 {[%clk 0:02:58.2]} 3... e5 {[%clk 0:02:59.3]}
4. dxe5 {[%clk 0:02:57.6]} 4... dxe5 {[%clk 0:03:00.2]} 5. Qxd8+ {[%clk
0:02:57.9]} 5... Kxd8 {[%clk 0:03:01.1]} 6. Nc3 {[%clk 0:02:58.2]} 6... c6
{[%clk 0:03:00.6]} 7. Bg5 {[%clk 0:02:53.3]} 7... Be7 {[%clk 0:02:51.9]} 8.
O-O-O+ {[%clk 0:02:52.7]} 8... Kc7 {[%clk 0:02:52]} 9. e4 {[%clk 0:02:37.6]}
9... Be6 {[%clk 0:02:50.3]} 10. Be3 {[%clk 0:02:32.8]} 10... Nbd7 {[%clk
0:02:33.4]} 11. Nge2 {[%clk 0:02:31.4]} 11... Bc5 {[%clk 0:02:30.8]} 12. Bxc5
{[%clk 0:02:25.7]} 12... Nxc5 {[%clk 0:02:30.5]} 13. b3 {[%clk 0:02:25.7]} 13...
Rhd8 {[%clk 0:02:25.1]} 14. Kc2 {[%clk 0:02:25.4]} 14... a5 {[%clk 0:02:20.7]}
15. Nc1 {[%clk 0:02:25.1]} 15... Rxd1 {[%clk 0:01:53.1]} 16. Kxd1 {[%clk
0:02:24.4]} 16... Rd8+ {[%clk 0:01:27.5]} 17. Kc2 {[%clk 0:02:23.9]} 17... Nfd7
{[%clk 0:01:22.3]} 18. Be2 {[%clk 0:02:22.2]} 18... f5 {[%clk 0:01:19.7]} 19. a3
{[%clk 0:02:08.1]} 19... fxe4 {[%clk 0:01:08]} 20. fxe4 {[%clk 0:02:07.8]} 20...
Nf6 {[%clk 0:00:58.2]} 21. Bf3 {[%clk 0:02:06.6]} 21... Bg4 {[%clk 0:00:52.8]}
22. Rd1 {[%clk 0:02:01.7]} 22... Rf8 {[%clk 0:00:47.7]} 23. Rf1 {[%clk
0:01:55.9]} 23... Re8 {[%clk 0:00:37.9]} 24. Bxg4 {[%clk 0:01:54.4]} 24... Nxg4
{[%clk 0:00:36.7]} 25. Rf7+ {[%clk 0:01:54]} 25... Kb6 {[%clk 0:00:31]} 26. Rxg7
{[%clk 0:01:52.3]} 26... Nxh2 {[%clk 0:00:21.9]} 27. Rxh7 {[%clk 0:01:51.8]}
27... Nf1 {[%clk 0:00:22.1]} 28. b4 {[%clk 0:01:50.7]} 28... Ne6 {[%clk
0:00:17.5]} 29. c5+ {[%clk 0:01:31.3]} 29... Ka7 {[%clk 0:00:16.3]} 30. b5
{[%clk 0:01:24]} 30... Nd4+ {[%clk 0:00:11.2]} 31. Kd3 {[%clk 0:01:16.5]} 31...
cxb5 {[%clk 0:00:11.6]} 32. N1e2 {[%clk 0:01:12.2]} 32... Rd8 {[%clk 0:00:08.8]}
33. Nd5 {[%clk 0:01:11.4]} 33... Nxe2 {[%clk 0:00:07.2]} 34. Kxe2 {[%clk
0:01:11]} 34... Ng3+ {[%clk 0:00:07.5]} 35. Kf3 {[%clk 0:01:11]} 35... Nf1
{[%clk 0:00:06.5]} 36. c6 {[%clk 0:01:10.9]} 36... Nd2+ {[%clk 0:00:05.6]} 37.
Kg4 {[%clk 0:01:04.5]} 37... Nxe4 {[%clk 0:00:04.7]} 38. Rxb7+ {[%clk 0:01:01]}
38... Ka6 {[%clk 0:00:04.8]} 39. c7 {[%clk 0:00:51.4]} 39... Rc8 {[%clk
0:00:02.6]} 40. Rb8 {[%clk 0:00:50.7]} 40... Nd6 {[%clk 0:00:01.8]} 41. Rxc8
{[%clk 0:00:48]} 41... Nxc8 {[%clk 0:00:02.7]} 42. Kf5 {[%clk 0:00:48.4]} 42...
Kb7 {[%clk 0:00:02.9]} 43. Kxe5 {[%clk 0:00:48.3]} 43... Kc6 {[%clk 0:00:03.5]}
44. g4 {[%clk 0:00:47.8]} 44... b4 {[%clk 0:00:03.9]} 45. axb4 {[%clk
0:00:47.5]} 45... axb4 {[%clk 0:00:04.8]} 46. Nxb4+ {[%clk 0:00:47.7]} 46...
Kxc7 {[%clk 0:00:05.3]} 47. g5 {[%clk 0:00:48.1]} 47... Kd7 {[%clk 0:00:05.6]}
48. Kf6 {[%clk 0:00:48.6]} 48... Ne7 {[%clk 0:00:05.3]} 49. g6 {[%clk
0:00:47.2]} 49... Nxg6 {[%clk 0:00:05.3]} 1/2-1/2

[Event "*** SCC Grand Prix: Titled Tuesday Blitz"]
[Site "Chess.com"]
[Date "2020.07.07"]
[Round "7"]
[White "NewBornNow"]
[Black "Dr-Bassem"]
[Result "1-0"]
[WhiteElo "2683"]
[BlackElo "2803"]
[TimeControl "180+1"]
[EndTime "11:19:40 PDT"]
[Termination "NewBornNow won on time"]

1. e4 {[%clk 0:03:00.9]} 1... e5 {[%clk 0:02:59.1]} 2. Nf3 {[%clk 0:03:00.1]}
2... Nc6 {[%clk 0:02:59.6]} 3. Bb5 {[%clk 0:02:58.9]} 3... a6 {[%clk 0:02:59.8]}
4. Ba4 {[%clk 0:02:58.1]} 4... Nf6 {[%clk 0:03:00.1]} 5. O-O {[%clk 0:02:55.6]}
5... Be7 {[%clk 0:02:59.1]} 6. d3 {[%clk 0:02:54.3]} 6... d6 {[%clk 0:02:58]} 7.
c3 {[%clk 0:02:52]} 7... O-O {[%clk 0:02:58.2]} 8. Re1 {[%clk 0:02:50.5]} 8...
Re8 {[%clk 0:02:58.2]} 9. Nbd2 {[%clk 0:02:50]} 9... Bf8 {[%clk 0:02:57]} 10.
Nf1 {[%clk 0:02:49.4]} 10... g6 {[%clk 0:02:37.6]} 11. h3 {[%clk 0:02:45.6]}
11... b5 {[%clk 0:02:36.8]} 12. Bc2 {[%clk 0:02:44.4]} 12... Bb7 {[%clk
0:02:36.8]} 13. Ng3 {[%clk 0:02:42.9]} 13... Nb8 {[%clk 0:02:22.1]} 14. d4
{[%clk 0:02:41]} 14... Nbd7 {[%clk 0:02:21.9]} 15. a4 {[%clk 0:02:37]} 15... c5
{[%clk 0:02:19.6]} 16. d5 {[%clk 0:02:32.2]} 16... c4 {[%clk 0:02:19.4]} 17. Bg5
{[%clk 0:02:30.8]} 17... h6 {[%clk 0:02:10.7]} 18. Be3 {[%clk 0:02:30.3]} 18...
Nc5 {[%clk 0:02:11.3]} 19. Qd2 {[%clk 0:02:29.1]} 19... h5 {[%clk 0:02:11.2]}
20. Bg5 {[%clk 0:02:27.9]} 20... Be7 {[%clk 0:02:07.7]} 21. Ra3 {[%clk
0:02:26.1]} 21... Nfd7 {[%clk 0:01:53.3]} 22. Be3 {[%clk 0:02:16.6]} 22... Qc7
{[%clk 0:01:47.3]} 23. Rea1 {[%clk 0:02:14.9]} 23... Nb6 {[%clk 0:01:38.6]} 24.
axb5 {[%clk 0:02:06.7]} 24... axb5 {[%clk 0:01:39.5]} 25. Qe2 {[%clk 0:02:00.5]}
25... Rxa3 {[%clk 0:01:36.1]} 26. Rxa3 {[%clk 0:01:59.4]} 26... Nba4 {[%clk
0:01:34.3]} 27. Ra2 {[%clk 0:01:49.5]} 27... Bc8 {[%clk 0:01:31.5]} 28. Nd2
{[%clk 0:01:45.7]} 28... Bd7 {[%clk 0:01:19.9]} 29. Qd1 {[%clk 0:01:38.1]} 29...
Rb8 {[%clk 0:01:06.1]} 30. Ne2 {[%clk 0:01:35.3]} 30... Qd8 {[%clk 0:00:52.3]}
31. b3 {[%clk 0:01:30.8]} 31... cxb3 {[%clk 0:00:46.3]} 32. Nxb3 {[%clk
0:01:30.3]} 32... Nxb3 {[%clk 0:00:40.9]} 33. Bxb3 {[%clk 0:01:30]} 33... Bg5
{[%clk 0:00:41.3]} 34. Qd2 {[%clk 0:01:12.6]} 34... Bxe3 {[%clk 0:00:30.4]} 35.
Qxe3 {[%clk 0:01:12.4]} 35... Kg7 {[%clk 0:00:21.2]} 36. f4 {[%clk 0:01:05.5]}
36... Qb6 {[%clk 0:00:17.8]} 37. Qxb6 {[%clk 0:01:04]} 37... Rxb6 {[%clk
0:00:18.7]} 38. fxe5 {[%clk 0:01:03]} 38... dxe5 {[%clk 0:00:19.6]} 39. Kf2
{[%clk 0:01:00.8]} 39... f5 {[%clk 0:00:19.6]} 40. Bxa4 {[%clk 0:00:48.3]} 40...
bxa4 {[%clk 0:00:19.1]} 41. c4 {[%clk 0:00:48.4]} 41... Rb4 {[%clk 0:00:13.2]}
42. c5 {[%clk 0:00:47.9]} 42... Bb5 {[%clk 0:00:13.4]} 43. Nc3 {[%clk
0:00:45.2]} 43... Bc4 {[%clk 0:00:04.7]} 44. Rxa4 {[%clk 0:00:44.1]} 44... Rb2+
{[%clk 0:00:05.3]} 45. Kg1 {[%clk 0:00:39.5]} 45... Bd3 {[%clk 0:00:05.1]} 46.
c6 {[%clk 0:00:34]} 46... Rc2 {[%clk 0:00:04.8]} 47. Ra3 {[%clk 0:00:32.5]}
47... Bxe4 {[%clk 0:00:02]} 48. c7 {[%clk 0:00:30.3]} 1-0

[Event "*** SCC Grand Prix: Titled Tuesday Blitz"]
[Site "Chess.com"]
[Date "2020.07.07"]
[Round "7"]
[White "Malysch"]
[Black "novocane"]
[Result "0-1"]
[WhiteElo "2455"]
[BlackElo "2271"]
[TimeControl "180+1"]
[EndTime "11:19:40 PDT"]
[Termination "novocane won on time"]

1. d4 {[%clk 0:03:00.9]} 1... Nf6 {[%clk 0:02:59.5]} 2. c4 {[%clk 0:03:01.8]}
2... e6 {[%clk 0:02:59.7]} 3. g3 {[%clk 0:03:01.9]} 3... d5 {[%clk 0:02:59.4]}
4. Bg2 {[%clk 0:03:02]} 4... Be7 {[%clk 0:02:59.5]} 5. Nf3 {[%clk 0:03:02.4]}
5... O-O {[%clk 0:02:59.8]} 6. O-O {[%clk 0:03:02.2]} 6... c6 {[%clk 0:03:00.1]}
7. Qc2 {[%clk 0:03:02]} 7... Nbd7 {[%clk 0:03:00]} 8. Nbd2 {[%clk 0:03:02.5]}
8... b6 {[%clk 0:02:59.6]} 9. e4 {[%clk 0:03:02.8]} 9... dxe4 {[%clk 0:02:59.1]}
10. Nxe4 {[%clk 0:03:03.7]} 10... Bb7 {[%clk 0:02:54.9]} 11. Rd1 {[%clk
0:03:02.7]} 11... Nxe4 {[%clk 0:02:52.7]} 12. Qxe4 {[%clk 0:03:03.6]} 12... Nf6
{[%clk 0:02:51.7]} 13. Qe2 {[%clk 0:03:03.5]} 13... Qc8 {[%clk 0:02:50.5]} 14.
Ne5 {[%clk 0:03:02.9]} 14... c5 {[%clk 0:02:49.4]} 15. dxc5 {[%clk 0:03:02.8]}
15... Bxg2 {[%clk 0:02:41.4]} 16. Kxg2 {[%clk 0:03:03.7]} 16... Bxc5 {[%clk
0:02:32.3]} 17. Qf3 {[%clk 0:02:59.6]} 17... Rd8 {[%clk 0:01:47.2]} 18. Bg5
{[%clk 0:02:53]} 18... Rxd1 {[%clk 0:00:54.6]} 19. Rxd1 {[%clk 0:02:51.5]} 19...
Be7 {[%clk 0:00:54.5]} 20. Nc6 {[%clk 0:02:21.5]} 20... Kf8 {[%clk 0:00:52.2]}
21. Ne5 {[%clk 0:01:43.7]} 21... Qe8 {[%clk 0:00:42.9]} 22. Bxf6 {[%clk
0:01:33]} 22... gxf6 {[%clk 0:00:38.8]} 23. Nd7+ {[%clk 0:01:27.8]} 23... Kg7
{[%clk 0:00:32.9]} 24. Rd4 {[%clk 0:01:16]} 24... f5 {[%clk 0:00:32.5]} 25. Qc3
{[%clk 0:01:11.7]} 25... Kg8 {[%clk 0:00:28.1]} 26. Qf3 {[%clk 0:01:06.9]} 26...
Rd8 {[%clk 0:00:26.3]} 27. Qc6 {[%clk 0:01:01.7]} 27... Kh8 {[%clk 0:00:22.9]}
28. b3 {[%clk 0:00:45]} 28... Bf6 {[%clk 0:00:21.1]} 29. Rd3 {[%clk 0:00:41.8]}
29... Bg7 {[%clk 0:00:20]} 30. h4 {[%clk 0:00:35.8]} 30... h6 {[%clk 0:00:19.9]}
31. Qc7 {[%clk 0:00:34.1]} 31... f4 {[%clk 0:00:16]} 32. g4 {[%clk 0:00:20]}
32... Qe7 {[%clk 0:00:15.6]} 33. Kh3 {[%clk 0:00:17.3]} 33... e5 {[%clk
0:00:13.9]} 34. Qc6 {[%clk 0:00:13.9]} 34... e4 {[%clk 0:00:13.1]} 35. Rd1
{[%clk 0:00:06.7]} 35... e3 {[%clk 0:00:12.6]} 36. fxe3 {[%clk 0:00:06.4]} 36...
fxe3 {[%clk 0:00:12.7]} 0-1

[Event "*** SCC Grand Prix: Titled Tuesday Blitz"]
[Site "Chess.com"]
[Date "2020.07.07"]
[Round "7"]
[White "AliKa2810"]
[Black "S2PAc"]
[Result "0-1"]
[WhiteElo "2584"]
[BlackElo "2766"]
[TimeControl "180+1"]
[EndTime "11:19:41 PDT"]
[Termination "S2PAc won by resignation"]

1. d4 {[%clk 0:03:00.9]} 1... Nf6 {[%clk 0:02:59.9]} 2. c4 {[%clk 0:03:01.2]}
2... b6 {[%clk 0:03:00.5]} 3. f3 {[%clk 0:03:00.8]} 3... Nc6 {[%clk 0:02:59.2]}
4. Nc3 {[%clk 0:03:00.3]} 4... e5 {[%clk 0:02:59]} 5. d5 {[%clk 0:02:59.7]} 5...
Ne7 {[%clk 0:02:59.5]} 6. g4 {[%clk 0:03:00.3]} 6... Ng6 {[%clk 0:02:54.7]} 7.
g5 {[%clk 0:02:59.5]} 7... Nh5 {[%clk 0:02:40.6]} 8. Nh3 {[%clk 0:02:38.7]} 8...
Bc5 {[%clk 0:02:24.6]} 9. Ne4 {[%clk 0:02:30.5]} 9... O-O {[%clk 0:01:54.4]} 10.
Nxc5 {[%clk 0:02:20.2]} 10... bxc5 {[%clk 0:01:55.3]} 11. Nf2 {[%clk 0:02:16.6]}
11... d6 {[%clk 0:01:50.2]} 12. Qc2 {[%clk 0:02:03.2]} 12... f5 {[%clk
0:01:44.2]} 13. gxf6 {[%clk 0:02:01.1]} 13... Qxf6 {[%clk 0:01:43.8]} 14. Bd2
{[%clk 0:01:58.9]} 14... Bf5 {[%clk 0:01:36.7]} 15. Qc3 {[%clk 0:01:39.8]} 15...
Qh4 {[%clk 0:01:29.8]} 16. Be3 {[%clk 0:01:38.2]} 16... Rab8 {[%clk 0:01:15.7]}
17. O-O-O {[%clk 0:01:37.2]} 17... Nhf4 {[%clk 0:01:15.2]} 18. Ne4 {[%clk
0:01:27.5]} 18... Bxe4 {[%clk 0:01:13.8]} 19. fxe4 {[%clk 0:01:28.4]} 19... Rb4
{[%clk 0:00:59.5]} 20. Bd2 {[%clk 0:01:18.5]} 20... Rfb8 {[%clk 0:00:51.5]} 21.
b3 {[%clk 0:01:18.5]} 21... a5 {[%clk 0:00:51.7]} 22. e3 {[%clk 0:01:18.4]}
22... Nh5 {[%clk 0:00:48.5]} 23. Bd3 {[%clk 0:01:17.5]} 23... a4 {[%clk
0:00:48.5]} 24. Bc2 {[%clk 0:01:17.7]} 24... Nf6 {[%clk 0:00:46.3]} 25. Qd3
{[%clk 0:01:15.5]} 25... R4b7 {[%clk 0:00:43.2]} 26. Rdf1 {[%clk 0:01:06.6]}
26... Ra8 {[%clk 0:00:42.7]} 27. bxa4 {[%clk 0:00:54.1]} 27... Rab8 {[%clk
0:00:38.8]} 28. a5 {[%clk 0:00:53.6]} 28... Rb2 {[%clk 0:00:38.5]} 29. Bb3
{[%clk 0:00:44.6]} 29... Rxd2 {[%clk 0:00:27.3]} 30. Kxd2 {[%clk 0:00:37.7]}
30... Nxe4+ {[%clk 0:00:25.7]} 31. Kc2 {[%clk 0:00:38.3]} 31... Nf2 {[%clk
0:00:26]} 32. Qf5 {[%clk 0:00:31.7]} 32... Nxh1 {[%clk 0:00:25.7]} 33. Rxh1
{[%clk 0:00:26.1]} 33... Rf8 {[%clk 0:00:21.5]} 34. Qe6+ {[%clk 0:00:25.9]}
34... Kh8 {[%clk 0:00:22.1]} 35. Rd1 {[%clk 0:00:24.9]} 35... Qe4+ {[%clk
0:00:20.3]} 36. Kb2 {[%clk 0:00:24.2]} 36... Qxe3 {[%clk 0:00:16.1]} 37. Rc1
{[%clk 0:00:15.5]} 37... Qd2+ {[%clk 0:00:15.3]} 38. Rc2 {[%clk 0:00:14.5]}
38... Qxa5 {[%clk 0:00:15.9]} 39. Rg2 {[%clk 0:00:13.1]} 39... Qe1 {[%clk
0:00:13.6]} 40. Qd7 {[%clk 0:00:11.6]} 40... Qe4 {[%clk 0:00:12.2]} 41. Qh3
{[%clk 0:00:10]} 41... Nf4 {[%clk 0:00:10.5]} 42. Qg4 {[%clk 0:00:05.6]} 42...
Qxg2+ {[%clk 0:00:10.3]} 0-1

[Event "*** SCC Grand Prix: Titled Tuesday Blitz"]
[Site "Chess.com"]
[Date "2020.07.07"]
[Round "7"]
[White "Chuchofrio1"]
[Black "IMKarimIsmael"]
[Result "0-1"]
[WhiteElo "2234"]
[BlackElo "2406"]
[TimeControl "180+1"]
[EndTime "11:19:42 PDT"]
[Termination "IMKarimIsmael won on time"]

1. e4 {[%clk 0:03:00.1]} 1... e5 {[%clk 0:02:58.6]} 2. Nf3 {[%clk 0:03:00]} 2...
Nf6 {[%clk 0:02:59]} 3. Nc3 {[%clk 0:02:56.2]} 3... Bb4 {[%clk 0:02:57.4]} 4.
Bc4 {[%clk 0:02:54.1]} 4... Bxc3 {[%clk 0:02:55.1]} 5. dxc3 {[%clk 0:02:55]}
5... d6 {[%clk 0:02:55.1]} 6. Bg5 {[%clk 0:02:54.2]} 6... Nbd7 {[%clk
0:02:54.9]} 7. O-O {[%clk 0:02:53.3]} 7... h6 {[%clk 0:02:53.8]} 8. Bxf6 {[%clk
0:02:51.4]} 8... Qxf6 {[%clk 0:02:49.1]} 9. Nd2 {[%clk 0:02:52.3]} 9... Nc5
{[%clk 0:02:38.5]} 10. b4 {[%clk 0:02:51.9]} 10... Ne6 {[%clk 0:02:36.7]} 11.
Bxe6 {[%clk 0:02:47]} 11... Bxe6 {[%clk 0:02:37.6]} 12. Qe2 {[%clk 0:02:45.2]}
12... O-O {[%clk 0:02:30.8]} 13. Rfe1 {[%clk 0:02:39.6]} 13... Qg6 {[%clk
0:02:30.2]} 14. Nf1 {[%clk 0:02:39.1]} 14... f5 {[%clk 0:02:28.9]} 15. exf5
{[%clk 0:02:38.8]} 15... Bxf5 {[%clk 0:02:29.8]} 16. Ng3 {[%clk 0:02:39.2]}
16... Bxc2 {[%clk 0:02:10.6]} 17. Qc4+ {[%clk 0:02:28.9]} 17... Rf7 {[%clk
0:02:09.4]} 18. Rac1 {[%clk 0:02:09.7]} 18... Rf8 {[%clk 0:01:59.6]} 19. h4
{[%clk 0:02:03.6]} 19... Bd3 {[%clk 0:01:50.6]} 20. Qb3 {[%clk 0:02:01.4]} 20...
b5 {[%clk 0:01:42.8]} 21. Nh1 {[%clk 0:01:53]} 21... Kh8 {[%clk 0:01:24.7]} 22.
Qb2 {[%clk 0:01:50.3]} 22... Qg4 {[%clk 0:01:14.6]} 23. Re3 {[%clk 0:01:28.5]}
23... Bc4 {[%clk 0:01:04.3]} 24. Qd2 {[%clk 0:01:25.5]} 24... Qxh4 {[%clk
0:01:01.7]} 25. Rh3 {[%clk 0:01:24.9]} 25... Qg4 {[%clk 0:00:57]} 26. Ng3 {[%clk
0:01:15.3]} 26... Rxf2 {[%clk 0:00:49.3]} 27. Qxf2 {[%clk 0:01:11.6]} 27... Rxf2
{[%clk 0:00:48.6]} 28. Kxf2 {[%clk 0:01:12.5]} 28... Qf4+ {[%clk 0:00:48.6]} 29.
Kg1 {[%clk 0:01:11.6]} 29... Qxc1+ {[%clk 0:00:48.6]} 30. Kh2 {[%clk 0:01:12.5]}
30... Qf4 {[%clk 0:00:42.3]} 31. Kg1 {[%clk 0:01:10.4]} 31... Kg8 {[%clk
0:00:37.2]} 32. Nh5 {[%clk 0:01:11.3]} 32... Qc1+ {[%clk 0:00:28]} 33. Kh2
{[%clk 0:01:10.4]} 33... Bxa2 {[%clk 0:00:16.6]} 34. Rg3 {[%clk 0:01:09.6]}
34... g5 {[%clk 0:00:16.8]} 35. Nf6+ {[%clk 0:01:09.2]} 35... Kf7 {[%clk
0:00:16.9]} 36. Ng4 {[%clk 0:01:08.8]} 36... Kg6 {[%clk 0:00:17]} 37. Rf3 {[%clk
0:01:06.5]} 37... h5 {[%clk 0:00:17.1]} 38. Ne3 {[%clk 0:01:02.9]} 38... g4
{[%clk 0:00:16.9]} 39. Rf8 {[%clk 0:01:02.1]} 39... Qxe3 {[%clk 0:00:16.4]} 40.
Rg8+ {[%clk 0:00:59.3]} 40... Bxg8 {[%clk 0:00:15.4]} 0-1

[Event "*** SCC Grand Prix: Titled Tuesday Blitz"]
[Site "Chess.com"]
[Date "2020.07.07"]
[Round "7"]
[White "ArjunErigaisi2003"]
[Black "Sam_ChessMood"]
[Result "1-0"]
[WhiteElo "3023"]
[BlackElo "2843"]
[TimeControl "180+1"]
[EndTime "11:19:43 PDT"]
[Termination "ArjunErigaisi2003 won on time"]

1. Nf3 {[%clk 0:03:00.9]} 1... d5 {[%clk 0:02:59.5]} 2. c4 {[%clk 0:03:00]} 2...
c6 {[%clk 0:02:57.9]} 3. e3 {[%clk 0:02:58.8]} 3... Nf6 {[%clk 0:02:55.9]} 4.
Nc3 {[%clk 0:02:58.1]} 4... a6 {[%clk 0:02:54.5]} 5. d4 {[%clk 0:02:55.8]} 5...
Bf5 {[%clk 0:02:53.7]} 6. Qb3 {[%clk 0:02:51.6]} 6... Ra7 {[%clk 0:02:53.7]} 7.
a4 {[%clk 0:02:43.9]} 7... e6 {[%clk 0:02:48.6]} 8. a5 {[%clk 0:02:41.6]} 8...
Nbd7 {[%clk 0:02:48]} 9. Nh4 {[%clk 0:02:41]} 9... Bg4 {[%clk 0:02:27.7]} 10. h3
{[%clk 0:02:37.6]} 10... Bh5 {[%clk 0:02:27.8]} 11. g4 {[%clk 0:02:36.4]} 11...
Bg6 {[%clk 0:02:28]} 12. Nxg6 {[%clk 0:02:16]} 12... hxg6 {[%clk 0:02:27.5]} 13.
Bg2 {[%clk 0:02:09.1]} 13... Bd6 {[%clk 0:02:22.2]} 14. g5 {[%clk 0:01:44.7]}
14... dxc4 {[%clk 0:02:10.5]} 15. Qxc4 {[%clk 0:01:40.5]} 15... Nd5 {[%clk
0:02:10.7]} 16. Ne4 {[%clk 0:01:25.9]} 16... Bb4+ {[%clk 0:02:02.8]} 17. Bd2
{[%clk 0:01:25.4]} 17... Bxd2+ {[%clk 0:02:02.8]} 18. Kxd2 {[%clk 0:01:26.3]}
18... O-O {[%clk 0:02:01]} 19. f4 {[%clk 0:01:21.3]} 19... f5 {[%clk 0:00:42.9]}
20. Nc3 {[%clk 0:01:04.2]} 20... Qe7 {[%clk 0:00:39.8]} 21. h4 {[%clk 0:00:58]}
21... Rd8 {[%clk 0:00:36.5]} 22. h5 {[%clk 0:00:52.9]} 22... Nf8 {[%clk
0:00:35.7]} 23. h6 {[%clk 0:00:48.9]} 23... Raa8 {[%clk 0:00:32.9]} 24. hxg7
{[%clk 0:00:46.9]} 24... Qxg7 {[%clk 0:00:33.1]} 25. Bxd5 {[%clk 0:00:36.8]}
25... exd5 {[%clk 0:00:32.7]} 26. Qb3 {[%clk 0:00:34.1]} 26... Rd7 {[%clk
0:00:26.9]} 27. Rh6 {[%clk 0:00:28.8]} 27... Re8 {[%clk 0:00:26]} 28. Rah1
{[%clk 0:00:27.1]} 28... Qe7 {[%clk 0:00:19.4]} 29. Rh8+ {[%clk 0:00:24.2]}
29... Kg7 {[%clk 0:00:19.7]} 30. R1h3 {[%clk 0:00:20.2]} 30... Qd8 {[%clk
0:00:10]} 31. Qd1 {[%clk 0:00:15.6]} 31... Qxa5 {[%clk 0:00:08.2]} 32. Qh1
{[%clk 0:00:15.8]} 32... Kf7 {[%clk 0:00:06.3]} 33. R3h7+ {[%clk 0:00:09.6]}
33... Ke6 {[%clk 0:00:05.6]} 34. Rxd7 {[%clk 0:00:08.5]} 34... Kxd7 {[%clk
0:00:05.4]} 35. Qh6 {[%clk 0:00:07.1]} 35... Qb4 {[%clk 0:00:05.5]} 36. Kc2
{[%clk 0:00:05.1]} 36... Qe7 {[%clk 0:00:03.6]} 37. Na4 {[%clk 0:00:04.5]} 37...
Qxe3 {[%clk 0:00:01]} 38. Nc5+ {[%clk 0:00:04.8]} 1-0

[Event "*** SCC Grand Prix: Titled Tuesday Blitz"]
[Site "Chess.com"]
[Date "2020.07.07"]
[Round "7"]
[White "Kavyev_Ruslan"]
[Black "1977Ivan"]
[Result "1-0"]
[WhiteElo "2557"]
[BlackElo "2676"]
[TimeControl "180+1"]
[EndTime "11:19:44 PDT"]
[Termination "Kavyev_Ruslan won on time"]

1. d4 {[%clk 0:02:55.9]} 1... Nf6 {[%clk 0:02:59.3]} 2. c4 {[%clk 0:02:56.2]}
2... e6 {[%clk 0:02:59.8]} 3. g3 {[%clk 0:02:55.9]} 3... c5 {[%clk 0:02:59.2]}
4. Nf3 {[%clk 0:02:56.2]} 4... cxd4 {[%clk 0:02:56.8]} 5. Nxd4 {[%clk
0:02:57.1]} 5... Bb4+ {[%clk 0:02:47.7]} 6. Bd2 {[%clk 0:02:56.9]} 6... Be7
{[%clk 0:02:46.9]} 7. Bg2 {[%clk 0:02:56.2]} 7... O-O {[%clk 0:02:46.5]} 8. Nc3
{[%clk 0:02:56.2]} 8... Nc6 {[%clk 0:02:45.1]} 9. Bf4 {[%clk 0:02:56]} 9... Nh5
{[%clk 0:02:24.7]} 10. Be3 {[%clk 0:02:48.4]} 10... Ne5 {[%clk 0:02:22]} 11. b3
{[%clk 0:02:37.3]} 11... d6 {[%clk 0:02:21.1]} 12. O-O {[%clk 0:02:37]} 12... a6
{[%clk 0:02:14.8]} 13. Qd2 {[%clk 0:02:37.1]} 13... Rb8 {[%clk 0:02:13.1]} 14.
h3 {[%clk 0:02:32.6]} 14... Bd7 {[%clk 0:02:11.1]} 15. a4 {[%clk 0:02:25.2]}
15... Nf6 {[%clk 0:02:07]} 16. Rfd1 {[%clk 0:02:17.5]} 16... Re8 {[%clk
0:02:03.9]} 17. Bf4 {[%clk 0:02:13.3]} 17... Ng6 {[%clk 0:01:59.5]} 18. Bg5
{[%clk 0:02:13.2]} 18... h6 {[%clk 0:01:59]} 19. Bxf6 {[%clk 0:02:04.3]} 19...
Bxf6 {[%clk 0:01:56.9]} 20. Ne4 {[%clk 0:02:04.8]} 20... Be7 {[%clk 0:01:45.5]}
21. Nf3 {[%clk 0:02:01.9]} 21... Bc6 {[%clk 0:01:31.3]} 22. Nxd6 {[%clk
0:02:01.7]} 22... Bxd6 {[%clk 0:01:24.1]} 23. Qxd6 {[%clk 0:02:02.6]} 23... Qb6
{[%clk 0:01:22.2]} 24. Qd3 {[%clk 0:02:00.7]} 24... e5 {[%clk 0:01:10.5]} 25.
Qc3 {[%clk 0:01:58.4]} 25... e4 {[%clk 0:01:06.4]} 26. Nd4 {[%clk 0:01:57.2]}
26... e3 {[%clk 0:01:06.4]} 27. f4 {[%clk 0:01:51.5]} 27... Bxg2 {[%clk
0:01:05.1]} 28. Kxg2 {[%clk 0:01:51.5]} 28... Qf6 {[%clk 0:01:01.5]} 29. Rd3
{[%clk 0:01:45.5]} 29... Rbd8 {[%clk 0:00:57.5]} 30. Nf3 {[%clk 0:01:42]} 30...
Qf5 {[%clk 0:00:21.6]} 31. Rad1 {[%clk 0:01:40.5]} 31... Rxd3 {[%clk 0:00:19.5]}
32. Qxd3 {[%clk 0:01:40.6]} 32... Re4 {[%clk 0:00:19.4]} 33. Qd8+ {[%clk
0:01:36.5]} 33... Kh7 {[%clk 0:00:19]} 34. Qd7 {[%clk 0:01:36.7]} 34... Rxf4
{[%clk 0:00:18.1]} 35. gxf4 {[%clk 0:01:29.3]} 35... Nxf4+ {[%clk 0:00:17.6]}
36. Kh2 {[%clk 0:01:29.8]} 36... Qc2 {[%clk 0:00:13.7]} 37. Ng1 {[%clk
0:01:05.6]} 37... Qe4 {[%clk 0:00:08.2]} 38. Qg4 {[%clk 0:01:04.9]} 38... f5
{[%clk 0:00:07.8]} 39. Qf3 {[%clk 0:01:04.9]} 39... Qe5 {[%clk 0:00:08.1]} 40.
Qg3 {[%clk 0:01:02.1]} 40... g5 {[%clk 0:00:06.4]} 41. Nf3 {[%clk 0:01:01.6]}
41... Qe4 {[%clk 0:00:06.3]} 42. Rd7+ {[%clk 0:00:32.6]} 42... Kg6 {[%clk
0:00:05.5]} 43. Rd6+ {[%clk 0:00:31.8]} 43... Kh5 {[%clk 0:00:03.2]} 44. Rd4
{[%clk 0:00:20.6]} 44... Qc2 {[%clk 0:00:02.8]} 45. Ng1 {[%clk 0:00:18.2]} 1-0